[Event "Titled Tuesday Blitz March 07 Early 2023"]
[White "Yelisieiev, Yevhenii"]
[Black "Postnikov, Artem"]
[WhiteFideId "14139642"]
[BlackFideId "34153575"]
[WhiteElo "2447"]
[BlackElo "2243"]
[Result "1-0"]
[Round "09"]
[TimeControl "180+2"]
[Date "2023.03.07"]
[WhiteClock "0:00:37"]
[BlackClock "0:00:03"]

1. d4 {[%clk 0:03:00]}  Nf6 {[%clk 0:02:54]} 2. Nf3 {[%clk 0:03:01]}  e6 {[%clk 0:02:54]} 3. c4 {[%clk 0:03:00]}  Bb4+ {[%clk 0:02:53]} 4. Nbd2 {[%clk 0:02:59]}  b6 {[%clk 0:02:52]} 5. a3 {[%clk 0:03:00]}  Be7 {[%clk 0:02:52]} 6. e4 {[%clk 0:02:59]}  Bb7 {[%clk 0:02:41]} 7. Bd3 {[%clk 0:02:56]}  d5 {[%clk 0:02:40]} 8. e5 {[%clk 0:02:56]}  Ne4 {[%clk 0:02:37]} 9. O-O {[%clk 0:02:54]}  Nxd2 {[%clk 0:01:52]} 10. Bxd2 {[%clk 0:02:53]}  c5 {[%clk 0:01:51]} 11. cxd5 {[%clk 0:02:49]}  Bxd5 {[%clk 0:01:50]} 12. Bb5+ {[%clk 0:02:48]}  Nd7 {[%clk 0:01:43]} 13. dxc5 {[%clk 0:02:36]}  Bxc5 {[%clk 0:01:44]} 14. b4 {[%clk 0:01:59]}  Be7 {[%clk 0:01:42]} 15. Nd4 {[%clk 0:01:53]}  O-O {[%clk 0:01:30]} 16. Bc6 {[%clk 0:01:49]}  Nxe5 {[%clk 0:01:17]} 17. Bxa8 {[%clk 0:01:46]}  Qxa8 {[%clk 0:01:18]} 18. f3 {[%clk 0:01:46]}  Nc4 {[%clk 0:01:15]} 19. Qe2 {[%clk 0:01:37]}  Bf6 {[%clk 0:00:52]} 20. Bc3 {[%clk 0:01:36]}  Rc8 {[%clk 0:00:46]} 21. Nb5 {[%clk 0:01:26]}  a6 {[%clk 0:00:23]} 22. Bxf6 {[%clk 0:01:24]}  axb5 {[%clk 0:00:23]} 23. Bd4 {[%clk 0:01:23]}  Qa4 {[%clk 0:00:22]} 24. Qf2 {[%clk 0:01:07]}  f6 {[%clk 0:00:21]} 25. Bxb6 {[%clk 0:01:04]}  Qb3 {[%clk 0:00:18]} 26. Rfb1 {[%clk 0:00:57]}  Qd3 {[%clk 0:00:18]} 27. Rd1 {[%clk 0:00:57]}  Qb3 {[%clk 0:00:18]} 28. Rdc1 {[%clk 0:00:48]}  Rd8 {[%clk 0:00:12]} 29. Bd4 {[%clk 0:00:44]}  e5 {[%clk 0:00:08]} 30. Bc5 {[%clk 0:00:43]}  Bf7 {[%clk 0:00:08]} 31. Qc2 {[%clk 0:00:39]}  Qxc2 {[%clk 0:00:02]} 32. Rxc2 {[%clk 0:00:39]}  Rd3 {[%clk 0:00:02]} 33. a4 {[%clk 0:00:37]}  bxa4 {[%clk 0:00:02]} 34. Rxa4 {[%clk 0:00:38]}  Rb3 {[%clk 0:00:03]} 35. Ra8+ {[%clk 0:00:37]}  Be8 {[%clk 0:00:03]} 36. Rxe8+ {[%clk 0:00:37]} 1-0


[Site "https://www.chess.com"]

[Event "Titled Tuesday Blitz March 07 Early 2023"]
[White "Golubev, Mikhail"]
[Black "Sekar, B"]
[WhiteFideId "14100983"]
[BlackFideId "5043743"]
[WhiteElo "2374"]
[BlackElo "2258"]
[Result "1-0"]
[Round "09"]
[TimeControl "180+2"]
[Date "2023.03.07"]
[WhiteClock "0:00:13"]
[BlackClock "0:00:11"]

1. e4 {[%clk 0:03:00]}  c5 {[%clk 0:02:59]} 2. Nf3 {[%clk 0:03:00]}  d6 {[%clk 0:03:00]} 3. d4 {[%clk 0:03:00]}  cxd4 {[%clk 0:03:01]} 4. Nxd4 {[%clk 0:03:00]}  Nf6 {[%clk 0:03:01]} 5. Nc3 {[%clk 0:03:00]}  a6 {[%clk 0:03:02]} 6. Bc4 {[%clk 0:02:59]}  e6 {[%clk 0:03:00]} 7. O-O {[%clk 0:02:59]}  Be7 {[%clk 0:02:50]} 8. Bb3 {[%clk 0:02:58]}  O-O {[%clk 0:02:45]} 9. f4 {[%clk 0:02:57]}  Qc7 {[%clk 0:02:43]} 10. f5 {[%clk 0:02:54]}  e5 {[%clk 0:02:31]} 11. Nde2 {[%clk 0:02:53]}  b5 {[%clk 0:02:18]} 12. Nd5 {[%clk 0:02:44]}  Nxd5 {[%clk 0:02:17]} 13. Bxd5 {[%clk 0:02:43]}  Bb7 {[%clk 0:02:17]} 14. Bxb7 {[%clk 0:02:43]}  Qxb7 {[%clk 0:02:17]} 15. f6 {[%clk 0:02:39]}  Bxf6 {[%clk 0:02:11]} 16. Rxf6 {[%clk 0:02:33]}  gxf6 {[%clk 0:02:12]} 17. Ng3 {[%clk 0:02:33]}  Kh8 {[%clk 0:01:59]} 18. Qf3 {[%clk 0:02:12]}  Nd7 {[%clk 0:01:57]} 19. Nh5 {[%clk 0:01:50]}  Rg8 {[%clk 0:01:32]} 20. Nxf6 {[%clk 0:01:46]}  Rg6 {[%clk 0:01:32]} 21. Nd5 {[%clk 0:01:46]}  Nb6 {[%clk 0:01:29]} 22. Nf6 {[%clk 0:01:32]}  Qe7 {[%clk 0:01:12]} 23. Nh5 {[%clk 0:01:16]}  Rag8 {[%clk 0:01:11]} 24. Ng3 {[%clk 0:01:13]}  Qe6 {[%clk 0:01:05]} 25. b3 {[%clk 0:01:05]}  d5 {[%clk 0:00:58]} 26. Bb2 {[%clk 0:00:50]}  f6 {[%clk 0:00:58]} 27. Rd1 {[%clk 0:00:46]}  dxe4 {[%clk 0:00:36]} 28. Qxe4 {[%clk 0:00:45]}  Nc8 {[%clk 0:00:33]} 29. Kh1 {[%clk 0:00:39]}  Nd6 {[%clk 0:00:22]} 30. Qc6 {[%clk 0:00:34]}  f5 {[%clk 0:00:20]} 31. Rxd6 {[%clk 0:00:23]}  Qxd6 {[%clk 0:00:16]} 32. Qxd6 {[%clk 0:00:23]}  Rxd6 {[%clk 0:00:17]} 33. Bxe5+ {[%clk 0:00:23]}  Rg7 {[%clk 0:00:15]} 34. Bxd6 {[%clk 0:00:22]}  Rd7 {[%clk 0:00:15]} 35. Nxf5 {[%clk 0:00:21]}  Kg8 {[%clk 0:00:14]} 36. g4 {[%clk 0:00:21]}  Kf7 {[%clk 0:00:14]} 37. Kg2 {[%clk 0:00:21]}  Ke6 {[%clk 0:00:15]} 38. Kf3 {[%clk 0:00:21]}  Kd5 {[%clk 0:00:14]} 39. Ke3 {[%clk 0:00:18]}  Rd8 {[%clk 0:00:14]} 40. Kd3 {[%clk 0:00:18]}  Ke6 {[%clk 0:00:12]} 41. c4 {[%clk 0:00:18]}  h5 {[%clk 0:00:12]} 42. h3 {[%clk 0:00:16]}  hxg4 {[%clk 0:00:13]} 43. hxg4 {[%clk 0:00:15]}  Rg8 {[%clk 0:00:14]} 44. c5 {[%clk 0:00:14]}  Rxg4 {[%clk 0:00:13]} 45. Nd4+ {[%clk 0:00:13]}  Kd5 {[%clk 0:00:13]} 46. Nc2 {[%clk 0:00:12]}  Rg2 {[%clk 0:00:11]} 47. Ne3+ {[%clk 0:00:12]}  Kc6 {[%clk 0:00:11]} 48. Nxg2 {[%clk 0:00:13]} 1-0


[Site "https://www.chess.com"]

[Event "Titled Tuesday Blitz March 07 Early 2023"]
[White "Moksh Amit Doshi"]
[Black "Mikhalsky, Vladimir"]
[WhiteFideId "25064967"]
[BlackFideId "14144352"]
[WhiteElo "2297"]
[BlackElo "2272"]
[Result "1/2-1/2"]
[Round "09"]
[TimeControl "180+2"]
[Date "2023.03.07"]
[WhiteClock "0:00:23"]
[BlackClock "0:00:08"]

1. d4 {[%clk 0:02:51]}  Nf6 {[%clk 0:02:58]} 2. c4 {[%clk 0:02:51]}  g6 {[%clk 0:02:58]} 3. Nc3 {[%clk 0:02:49]}  Bg7 {[%clk 0:02:58]} 4. e4 {[%clk 0:02:49]}  O-O {[%clk 0:02:58]} 5. Nf3 {[%clk 0:02:49]}  d6 {[%clk 0:02:58]} 6. Bd3 {[%clk 0:02:50]}  e5 {[%clk 0:02:58]} 7. d5 {[%clk 0:02:47]}  h6 {[%clk 0:02:55]} 8. O-O {[%clk 0:02:45]}  a5 {[%clk 0:02:55]} 9. h3 {[%clk 0:02:41]}  Nh5 {[%clk 0:02:53]} 10. Re1 {[%clk 0:02:36]}  Na6 {[%clk 0:02:52]} 11. a3 {[%clk 0:02:34]}  Nc5 {[%clk 0:02:50]} 12. Bc2 {[%clk 0:02:32]}  Bd7 {[%clk 0:02:46]} 13. Rb1 {[%clk 0:02:32]}  a4 {[%clk 0:02:45]} 14. Be3 {[%clk 0:02:31]}  Qe8 {[%clk 0:02:41]} 15. Qd2 {[%clk 0:02:30]}  Kh7 {[%clk 0:02:41]} 16. Nh2 {[%clk 0:02:05]}  Nf6 {[%clk 0:02:03]} 17. f4 {[%clk 0:01:58]}  exf4 {[%clk 0:02:00]} 18. Bxf4 {[%clk 0:01:59]}  Nh5 {[%clk 0:02:00]} 19. Be3 {[%clk 0:01:58]}  Qe5 {[%clk 0:01:53]} 20. Nf3 {[%clk 0:01:58]}  Qe7 {[%clk 0:01:42]} 21. Bxc5 {[%clk 0:01:50]}  dxc5 {[%clk 0:01:41]} 22. e5 {[%clk 0:01:51]}  f5 {[%clk 0:01:17]} 23. Qd1 {[%clk 0:00:48]}  Nf4 {[%clk 0:00:51]} 24. Bxa4 {[%clk 0:00:46]}  Bxa4 {[%clk 0:00:48]} 25. Nxa4 {[%clk 0:00:47]}  Rfd8 {[%clk 0:00:40]} 26. Nc3 {[%clk 0:00:46]}  c6 {[%clk 0:00:36]} 27. Qb3 {[%clk 0:00:37]}  Nd3 {[%clk 0:00:29]} 28. Re3 {[%clk 0:00:30]}  Nxe5 {[%clk 0:00:27]} 29. Nxe5 {[%clk 0:00:30]}  Bxe5 {[%clk 0:00:27]} 30. Kh1 {[%clk 0:00:24]}  Qg7 {[%clk 0:00:20]} 31. Rbe1 {[%clk 0:00:21]}  Bf6 {[%clk 0:00:19]} 32. dxc6 {[%clk 0:00:20]}  bxc6 {[%clk 0:00:19]} 33. Re6 {[%clk 0:00:21]}  Rab8 {[%clk 0:00:16]} 34. Qa4 {[%clk 0:00:21]}  Rbc8 {[%clk 0:00:12]} 35. Rxc6 {[%clk 0:00:18]}  Rxc6 {[%clk 0:00:12]} 36. Qxc6 {[%clk 0:00:19]}  Bd4 {[%clk 0:00:11]} 37. Nd5 {[%clk 0:00:19]}  Bxb2 {[%clk 0:00:10]} 38. Qxc5 {[%clk 0:00:17]}  Bd4 {[%clk 0:00:08]} 39. Qc6 {[%clk 0:00:14]}  Kh8 {[%clk 0:00:07]} 40. Re8+ {[%clk 0:00:13]}  Rxe8 {[%clk 0:00:07]} 41. Qxe8+ {[%clk 0:00:14]}  Kh7 {[%clk 0:00:07]} 42. Qe7 {[%clk 0:00:15]}  Qxe7 {[%clk 0:00:06]} 43. Nxe7 {[%clk 0:00:16]}  Bc5 {[%clk 0:00:07]} 44. Nd5 {[%clk 0:00:14]}  Bxa3 {[%clk 0:00:07]} 45. g4 {[%clk 0:00:14]}  fxg4 {[%clk 0:00:06]} 46. hxg4 {[%clk 0:00:15]}  Kg8 {[%clk 0:00:06]} 47. Kg2 {[%clk 0:00:14]}  Kf7 {[%clk 0:00:06]} 48. Kf3 {[%clk 0:00:15]}  Ke6 {[%clk 0:00:06]} 49. Ke4 {[%clk 0:00:16]}  Bc5 {[%clk 0:00:06]} 50. Nf4+ {[%clk 0:00:15]}  Kf6 {[%clk 0:00:06]} 51. Kd5 {[%clk 0:00:16]}  Be3 {[%clk 0:00:05]} 52. Ng2 {[%clk 0:00:16]}  Bf2 {[%clk 0:00:04]} 53. Nf4 {[%clk 0:00:15]}  h5 {[%clk 0:00:03]} 54. gxh5 {[%clk 0:00:15]}  gxh5 {[%clk 0:00:03]} 55. Nxh5+ {[%clk 0:00:16]}  Ke7 {[%clk 0:00:03]} 56. Nf4 {[%clk 0:00:16]}  Kd7 {[%clk 0:00:02]} 57. Nd3 {[%clk 0:00:16]}  Bg1 {[%clk 0:00:02]} 58. Ne5+ {[%clk 0:00:16]}  Kc7 {[%clk 0:00:02]} 59. Nf3 {[%clk 0:00:17]}  Bf2 {[%clk 0:00:02]} 60. Nd2 {[%clk 0:00:17]}  Bg1 {[%clk 0:00:02]} 61. Ne4 {[%clk 0:00:17]}  Be3 {[%clk 0:00:02]} 62. Nf6 {[%clk 0:00:17]}  Bg1 {[%clk 0:00:02]} 63. Ke5 {[%clk 0:00:16]}  Bf2 {[%clk 0:00:02]} 64. Ng4 {[%clk 0:00:16]}  Bg1 {[%clk 0:00:02]} 65. Nh6 {[%clk 0:00:16]}  Kc8 {[%clk 0:00:02]} 66. Kd6 {[%clk 0:00:16]}  Bh2+ {[%clk 0:00:03]} 67. Kc6 {[%clk 0:00:16]}  Bg1 {[%clk 0:00:03]} 68. Nf5 {[%clk 0:00:17]}  Bf2 {[%clk 0:00:03]} 69. Nd6+ {[%clk 0:00:17]}  Kd8 {[%clk 0:00:03]} 70. Ne4 {[%clk 0:00:18]}  Bg1 {[%clk 0:00:02]} 71. Nc3 {[%clk 0:00:18]}  Kc8 {[%clk 0:00:02]} 72. Nb5 {[%clk 0:00:18]}  Bf2 {[%clk 0:00:03]} 73. Kd5 {[%clk 0:00:18]}  Kb8 {[%clk 0:00:03]} 74. Nd4 {[%clk 0:00:18]}  Bg1 {[%clk 0:00:04]} 75. c5 {[%clk 0:00:18]}  Kc7 {[%clk 0:00:04]} 76. Ne6+ {[%clk 0:00:17]}  Kc8 {[%clk 0:00:04]} 77. c6 {[%clk 0:00:18]}  Bh2 {[%clk 0:00:04]} 78. Ng5 {[%clk 0:00:17]}  Bg3 {[%clk 0:00:04]} 79. Kc5 {[%clk 0:00:18]}  Bh2 {[%clk 0:00:05]} 80. Ne4 {[%clk 0:00:17]}  Bf4 {[%clk 0:00:05]} 81. Nc3 {[%clk 0:00:17]}  Be3+ {[%clk 0:00:05]} 82. Kb5 {[%clk 0:00:17]}  Bf4 {[%clk 0:00:05]} 83. Nd5 {[%clk 0:00:17]}  Bh2 {[%clk 0:00:06]} 84. Kb6 {[%clk 0:00:17]}  Kb8 {[%clk 0:00:06]} 85. Nb4 {[%clk 0:00:16]}  Kc8 {[%clk 0:00:06]} 86. Nd5 {[%clk 0:00:15]}  Bg1+ {[%clk 0:00:06]} 87. Kb5 {[%clk 0:00:15]}  Bh2 {[%clk 0:00:07]} 88. Ne7+ {[%clk 0:00:16]}  Kc7 {[%clk 0:00:07]} 89. Nf5 {[%clk 0:00:17]}  Kc8 {[%clk 0:00:07]} 90. Nd4 {[%clk 0:00:17]}  Bf4 {[%clk 0:00:07]} 91. Kc4 {[%clk 0:00:16]}  Bh2 {[%clk 0:00:07]} 92. Kd5 {[%clk 0:00:17]}  Bg1 {[%clk 0:00:07]} 93. Ne6 {[%clk 0:00:17]}  Bh2 {[%clk 0:00:07]} 94. Nc5 {[%clk 0:00:17]}  Bg3 {[%clk 0:00:08]} 95. Na6 {[%clk 0:00:16]}  Bh2 {[%clk 0:00:08]} 96. Nb4 {[%clk 0:00:17]}  Bg3 {[%clk 0:00:08]} 97. Nc2 {[%clk 0:00:18]}  Bh2 {[%clk 0:00:09]} 98. Nd4 {[%clk 0:00:19]}  Bg3 {[%clk 0:00:09]} 99. Ne2 {[%clk 0:00:19]}  Bh2 {[%clk 0:00:09]} 100. Kc5 {[%clk 0:00:20]}  Kc7 {[%clk 0:00:09]} 101. Kb5 {[%clk 0:00:19]}  Kc8 {[%clk 0:00:09]} 102. Kb6 {[%clk 0:00:19]}  Be5 {[%clk 0:00:09]} 103. Nc1 {[%clk 0:00:19]}  Bc7+ {[%clk 0:00:09]} 104. Kc5 {[%clk 0:00:19]}  Bh2 {[%clk 0:00:10]} 105. Nd3 {[%clk 0:00:20]}  Bg1+ {[%clk 0:00:10]} 106. Kd6 {[%clk 0:00:20]}  Bh2+ {[%clk 0:00:10]} 107. Kd5 {[%clk 0:00:20]}  Bg1 {[%clk 0:00:11]} 108. Ne5 {[%clk 0:00:20]}  Bh2 {[%clk 0:00:11]} 109. Ng4 {[%clk 0:00:21]}  Bf4 {[%clk 0:00:10]} 110. Nf6 {[%clk 0:00:21]}  Bh2 {[%clk 0:00:10]} 111. Ne4 {[%clk 0:00:20]}  Bf4 {[%clk 0:00:10]} 112. Nd6+ {[%clk 0:00:21]}  Bxd6 {[%clk 0:00:07]} 113. Kxd6 {[%clk 0:00:22]}  Kd8 {[%clk 0:00:07]} 114. c7+ {[%clk 0:00:22]}  Kc8 {[%clk 0:00:08]} 115. Kc6 {[%clk 0:00:23]} 1/2-1/2


[Site "https://www.chess.com"]

[Event "Titled Tuesday Blitz March 07 Early 2023"]
[White "Mouhamad, Joachim"]
[Black "Migot, Tangi"]
[WhiteFideId "656410"]
[BlackFideId "662445"]
[WhiteElo "2164"]
[BlackElo "2535"]
[Result "0-1"]
[Round "09"]
[TimeControl "180+2"]
[Date "2023.03.07"]
[WhiteClock "0:00:03"]
[BlackClock "0:00:15"]

1. e4 {[%clk 0:03:00]}  Nf6 {[%clk 0:03:00]} 2. e5 {[%clk 0:03:00]}  Nd5 {[%clk 0:03:01]} 3. d4 {[%clk 0:03:01]}  d6 {[%clk 0:03:01]} 4. c4 {[%clk 0:03:01]}  Nb6 {[%clk 0:03:02]} 5. exd6 {[%clk 0:03:01]}  cxd6 {[%clk 0:03:02]} 6. Nc3 {[%clk 0:03:00]}  g6 {[%clk 0:03:02]} 7. Be3 {[%clk 0:03:01]}  Bg7 {[%clk 0:03:02]} 8. Rc1 {[%clk 0:03:01]}  Bf5 {[%clk 0:03:01]} 9. b3 {[%clk 0:03:00]}  O-O {[%clk 0:03:00]} 10. Nf3 {[%clk 0:02:54]}  d5 {[%clk 0:02:53]} 11. c5 {[%clk 0:02:54]}  Nc8 {[%clk 0:02:53]} 12. b4 {[%clk 0:02:53]}  a6 {[%clk 0:02:53]} 13. a4 {[%clk 0:02:53]}  Bg4 {[%clk 0:02:46]} 14. Be2 {[%clk 0:02:52]}  e6 {[%clk 0:02:44]} 15. h3 {[%clk 0:02:50]}  Bxf3 {[%clk 0:02:44]} 16. Bxf3 {[%clk 0:02:49]}  Ne7 {[%clk 0:02:44]} 17. O-O {[%clk 0:02:43]}  Nf5 {[%clk 0:02:45]} 18. b5 {[%clk 0:02:35]}  axb5 {[%clk 0:02:45]} 19. axb5 {[%clk 0:02:35]}  Qh4 {[%clk 0:02:34]} 20. Bg4 {[%clk 0:02:25]}  Nxe3 {[%clk 0:02:11]} 21. fxe3 {[%clk 0:02:24]}  Ra3 {[%clk 0:02:06]} 22. Qe1 {[%clk 0:02:14]}  Qg5 {[%clk 0:02:01]} 23. Nd1 {[%clk 0:01:59]}  Bxd4 {[%clk 0:01:51]} 24. exd4 {[%clk 0:01:49]}  Qxc1 {[%clk 0:01:50]} 25. Bxe6 {[%clk 0:01:49]}  Qh6 {[%clk 0:01:31]} 26. Bxd5 {[%clk 0:01:32]}  Qg7 {[%clk 0:01:25]} 27. Qb4 {[%clk 0:01:05]}  Rd3 {[%clk 0:01:24]} 28. Bxb7 {[%clk 0:00:54]}  Rxd4 {[%clk 0:01:25]} 29. Qe1 {[%clk 0:00:50]}  Nd7 {[%clk 0:01:08]} 30. Qe7 {[%clk 0:00:40]}  Rd2 {[%clk 0:00:55]} 31. Nf2 {[%clk 0:00:31]}  Qd4 {[%clk 0:00:51]} 32. c6 {[%clk 0:00:18]}  Nc5 {[%clk 0:00:34]} 33. Qc7 {[%clk 0:00:03]}  Rb2 {[%clk 0:00:20]} 34. Qg3 {[%clk 0:00:04]}  Nxb7 {[%clk 0:00:19]} 35. cxb7 {[%clk 0:00:04]}  Rxb5 {[%clk 0:00:19]} 36. Kh2 {[%clk 0:00:04]}  Rxb7 {[%clk 0:00:19]} 37. Ng4 {[%clk 0:00:05]}  h5 {[%clk 0:00:18]} 38. Nf6+ {[%clk 0:00:04]}  Kh8 {[%clk 0:00:17]} 39. Rf4 {[%clk 0:00:05]}  Qe5 {[%clk 0:00:16]} 40. Nxh5 {[%clk 0:00:04]}  gxh5 {[%clk 0:00:14]} 41. Qf3 {[%clk 0:00:04]}  Rb4 {[%clk 0:00:14]} 42. g3 {[%clk 0:00:03]}  Rxf4 {[%clk 0:00:14]} 43. gxf4 {[%clk 0:00:03]}  Qg7 {[%clk 0:00:15]} 0-1


[Site "https://www.chess.com"]

[Event "Titled Tuesday Blitz March 07 Early 2023"]
[White "Avazkhonov, Alikhon"]
[Black "Zarnicki, Pablo"]
[WhiteFideId "14208504"]
[BlackFideId "100137"]
[WhiteElo "1739"]
[BlackElo "2468"]
[Result "0-1"]
[Round "09"]
[TimeControl "180+2"]
[Date "2023.03.07"]
[WhiteClock "0:00:01"]
[BlackClock "0:01:41"]

1. d4 {[%clk 0:03:00]}  Nf6 {[%clk 0:02:57]} 2. c4 {[%clk 0:03:01]}  g6 {[%clk 0:02:55]} 3. Nc3 {[%clk 0:03:01]}  Bg7 {[%clk 0:02:56]} 4. e4 {[%clk 0:03:02]}  O-O {[%clk 0:02:57]} 5. f3 {[%clk 0:03:02]}  d6 {[%clk 0:02:55]} 6. Be3 {[%clk 0:03:03]}  c5 {[%clk 0:02:55]} 7. Nge2 {[%clk 0:03:02]}  cxd4 {[%clk 0:02:54]} 8. Nxd4 {[%clk 0:03:03]}  Nc6 {[%clk 0:02:55]} 9. Qc2 {[%clk 0:03:00]}  Nxd4 {[%clk 0:02:50]} 10. Bxd4 {[%clk 0:02:59]}  a6 {[%clk 0:02:51]} 11. Be2 {[%clk 0:02:57]}  Rb8 {[%clk 0:02:50]} 12. O-O {[%clk 0:02:42]}  Be6 {[%clk 0:02:47]} 13. Rfd1 {[%clk 0:02:08]}  Qa5 {[%clk 0:02:42]} 14. Nd5 {[%clk 0:02:02]}  Bxd5 {[%clk 0:02:32]} 15. cxd5 {[%clk 0:01:59]}  Rfc8 {[%clk 0:02:24]} 16. Qb3 {[%clk 0:01:59]}  Nd7 {[%clk 0:02:24]} 17. Ba7 {[%clk 0:01:10]}  Nc5 {[%clk 0:01:59]} 18. Qb6 {[%clk 0:00:18]}  Qxb6 {[%clk 0:01:56]} 19. Bxb6 {[%clk 0:00:19]}  Na4 {[%clk 0:01:55]} 20. Bd4 {[%clk 0:00:18]}  Nxb2 {[%clk 0:01:54]} 21. Bxg7 {[%clk 0:00:06]}  Nxd1 {[%clk 0:01:44]} 22. Bd4 {[%clk 0:00:03]}  Nc3 {[%clk 0:01:44]} 23. Bf1 {[%clk 0:00:03]}  b5 {[%clk 0:01:41]} 24. a3 {[%clk 0:00:02]}  a5 {[%clk 0:01:40]} 25. Kf2 {[%clk 0:00:01]}  b4 {[%clk 0:01:41]} 26. axb4 {[%clk 0:00:01]}  axb4 {[%clk 0:01:42]} 27. Ra7 {[%clk 0:00:01]}  b3 {[%clk 0:01:41]} 0-1


[Site "https://www.chess.com"]

[Event "Titled Tuesday Blitz March 07 Early 2023"]
[White "Kozin, Yuri"]
[Black "Slade, Theodore"]
[WhiteFideId "4129920"]
[BlackFideId "426547"]
[WhiteElo "2513"]
[BlackElo "1964"]
[Result "0-1"]
[Round "09"]
[TimeControl "180+2"]
[Date "2023.03.07"]
[WhiteClock "0:00:22"]
[BlackClock "0:00:38"]

1. e4 {[%clk 0:03:00]}  e5 {[%clk 0:03:00]} 2. Nf3 {[%clk 0:03:00]}  Nc6 {[%clk 0:03:01]} 3. Bb5 {[%clk 0:03:01]}  Nf6 {[%clk 0:03:01]} 4. d3 {[%clk 0:03:01]}  Bc5 {[%clk 0:03:01]} 5. O-O {[%clk 0:03:01]}  Nd4 {[%clk 0:03:01]} 6. Ba4 {[%clk 0:03:01]}  Nxf3+ {[%clk 0:03:01]} 7. Qxf3 {[%clk 0:03:00]}  O-O {[%clk 0:03:01]} 8. Nc3 {[%clk 0:02:59]}  c6 {[%clk 0:03:01]} 9. Be3 {[%clk 0:02:55]}  Bxe3 {[%clk 0:02:58]} 10. fxe3 {[%clk 0:02:55]}  a5 {[%clk 0:02:55]} 11. Bb3 {[%clk 0:02:54]}  b5 {[%clk 0:02:53]} 12. a4 {[%clk 0:02:53]}  b4 {[%clk 0:02:53]} 13. Ne2 {[%clk 0:02:51]}  d5 {[%clk 0:02:51]} 14. exd5 {[%clk 0:02:49]}  cxd5 {[%clk 0:02:52]} 15. Ng3 {[%clk 0:02:42]}  Bg4 {[%clk 0:02:50]} 16. Qf2 {[%clk 0:02:41]}  Rc8 {[%clk 0:02:46]} 17. h3 {[%clk 0:02:38]}  Be6 {[%clk 0:02:45]} 18. Nf5 {[%clk 0:02:31]}  Qd7 {[%clk 0:02:44]} 19. Nh4 {[%clk 0:02:17]}  h6 {[%clk 0:02:26]} 20. Nf3 {[%clk 0:02:15]}  Qd6 {[%clk 0:02:24]} 21. Qg3 {[%clk 0:02:13]}  Nd7 {[%clk 0:02:21]} 22. d4 {[%clk 0:02:06]}  f6 {[%clk 0:02:21]} 23. Nh4 {[%clk 0:01:56]}  Nb6 {[%clk 0:01:55]} 24. Ng6 {[%clk 0:01:42]}  Rfe8 {[%clk 0:01:39]} 25. dxe5 {[%clk 0:01:26]}  fxe5 {[%clk 0:01:40]} 26. Qxe5 {[%clk 0:01:19]}  Qxe5 {[%clk 0:01:38]} 27. Nxe5 {[%clk 0:01:20]}  Bxh3 {[%clk 0:01:35]} 28. Nf7 {[%clk 0:01:11]}  Rc7 {[%clk 0:01:10]} 29. gxh3 {[%clk 0:01:05]}  Rxf7 {[%clk 0:01:09]} 30. Rxf7 {[%clk 0:01:00]}  Kxf7 {[%clk 0:01:10]} 31. Rd1 {[%clk 0:00:56]}  Rxe3 {[%clk 0:01:07]} 32. Bxd5+ {[%clk 0:00:56]}  Nxd5 {[%clk 0:01:05]} 33. Rxd5 {[%clk 0:00:57]}  Rxh3 {[%clk 0:01:02]} 34. Rxa5 {[%clk 0:00:55]}  b3 {[%clk 0:00:56]} 35. c3 {[%clk 0:00:50]}  Rd3 {[%clk 0:00:53]} 36. Rb5 {[%clk 0:00:43]}  Rd1+ {[%clk 0:00:53]} 37. Kf2 {[%clk 0:00:43]}  Rd2+ {[%clk 0:00:54]} 38. Ke3 {[%clk 0:00:44]}  Rxb2 {[%clk 0:00:54]} 39. a5 {[%clk 0:00:44]}  Ra2 {[%clk 0:00:51]} 40. Kd3 {[%clk 0:00:38]}  b2 {[%clk 0:00:48]} 41. Kc2 {[%clk 0:00:37]}  Kg6 {[%clk 0:00:40]} 42. Kb1 {[%clk 0:00:36]}  Ra4 {[%clk 0:00:38]} 43. Kxb2 {[%clk 0:00:36]}  h5 {[%clk 0:00:38]} 44. Kb3 {[%clk 0:00:37]}  Ra1 {[%clk 0:00:38]} 45. Rb6+ {[%clk 0:00:23]}  Kg5 {[%clk 0:00:38]} 46. Rb7 {[%clk 0:00:22]}  Rb1+ {[%clk 0:00:37]} 47. Kc4 {[%clk 0:00:22]}  Rxb7 {[%clk 0:00:38]} 0-1


[Site "https://www.chess.com"]

[Event "Titled Tuesday Blitz March 07 Early 2023"]
[White "Leve, Nitai"]
[Black "Lehtosaari, Mauri"]
[WhiteFideId "2006898"]
[BlackFideId "501999"]
[WhiteElo "2144"]
[BlackElo "2511"]
[Result "0-1"]
[Round "09"]
[TimeControl "180+2"]
[Date "2023.03.07"]
[WhiteClock "0:00:06"]
[BlackClock "0:00:46"]

1. e4 {[%clk 0:03:00]}  c5 {[%clk 0:02:52]} 2. Nf3 {[%clk 0:02:52]}  e6 {[%clk 0:02:52]} 3. d4 {[%clk 0:02:47]}  cxd4 {[%clk 0:02:53]} 4. Nxd4 {[%clk 0:02:41]}  Qb6 {[%clk 0:02:51]} 5. Nb3 {[%clk 0:02:41]}  Qc7 {[%clk 0:02:48]} 6. Nc3 {[%clk 0:02:40]}  a6 {[%clk 0:02:48]} 7. Bd3 {[%clk 0:02:40]}  Nf6 {[%clk 0:02:47]} 8. O-O {[%clk 0:02:39]}  d6 {[%clk 0:02:39]} 9. Bg5 {[%clk 0:02:33]}  Be7 {[%clk 0:02:39]} 10. f4 {[%clk 0:02:31]}  b5 {[%clk 0:02:38]} 11. f5 {[%clk 0:02:18]}  b4 {[%clk 0:02:22]} 12. Ne2 {[%clk 0:02:07]}  e5 {[%clk 0:02:18]} 13. Ng3 {[%clk 0:02:01]}  Bb7 {[%clk 0:02:10]} 14. Bxf6 {[%clk 0:02:00]}  Bxf6 {[%clk 0:02:10]} 15. Nh5 {[%clk 0:02:00]}  Nd7 {[%clk 0:02:07]} 16. a3 {[%clk 0:01:56]}  bxa3 {[%clk 0:02:03]} 17. Rxa3 {[%clk 0:01:55]}  a5 {[%clk 0:01:49]} 18. Kh1 {[%clk 0:01:42]}  a4 {[%clk 0:01:45]} 19. Nd2 {[%clk 0:01:40]}  Qb6 {[%clk 0:01:43]} 20. Nc4 {[%clk 0:01:31]}  Qc5 {[%clk 0:01:43]} 21. Nxf6+ {[%clk 0:00:36]}  Nxf6 {[%clk 0:01:33]} 22. Nxd6+ {[%clk 0:00:35]}  Qxd6 {[%clk 0:01:27]} 23. Bb5+ {[%clk 0:00:36]}  Ke7 {[%clk 0:01:28]} 24. Rd3 {[%clk 0:00:37]}  Qc7 {[%clk 0:01:16]} 25. c4 {[%clk 0:00:32]}  Rhd8 {[%clk 0:01:08]} 26. Rxd8 {[%clk 0:00:31]}  Rxd8 {[%clk 0:01:07]} 27. Qxa4 {[%clk 0:00:30]}  Bxe4 {[%clk 0:01:07]} 28. Qa3+ {[%clk 0:00:26]}  Qd6 {[%clk 0:01:05]} 29. c5 {[%clk 0:00:25]}  Qc7 {[%clk 0:01:04]} 30. c6+ {[%clk 0:00:10]}  Qd6 {[%clk 0:01:01]} 31. c7 {[%clk 0:00:06]}  Rc8 {[%clk 0:01:00]} 32. Rc1 {[%clk 0:00:03]}  Qxa3 {[%clk 0:00:55]} 33. bxa3 {[%clk 0:00:04]}  Kd6 {[%clk 0:00:56]} 34. a4 {[%clk 0:00:04]}  Rxc7 {[%clk 0:00:55]} 35. Rd1+ {[%clk 0:00:05]}  Kc5 {[%clk 0:00:55]} 36. h3 {[%clk 0:00:06]}  Bc6 {[%clk 0:00:49]} 37. Rc1+ {[%clk 0:00:05]}  Kb6 {[%clk 0:00:49]} 38. Bxc6 {[%clk 0:00:03]}  Rxc6 {[%clk 0:00:49]} 39. a5+ {[%clk 0:00:04]}  Kc7 {[%clk 0:00:49]} 40. Re1 {[%clk 0:00:04]}  e4 {[%clk 0:00:48]} 41. g4 {[%clk 0:00:05]}  h6 {[%clk 0:00:48]} 42. Kg2 {[%clk 0:00:05]}  Ra6 {[%clk 0:00:47]} 43. Kg3 {[%clk 0:00:05]}  Rxa5 {[%clk 0:00:47]} 44. Kf4 {[%clk 0:00:06]}  Ra4 {[%clk 0:00:47]} 45. h4 {[%clk 0:00:06]}  Kd6 {[%clk 0:00:46]} 46. g5 {[%clk 0:00:07]}  Nd5+ {[%clk 0:00:46]} 47. Kg4 {[%clk 0:00:07]}  hxg5 {[%clk 0:00:47]} 48. Kxg5 {[%clk 0:00:07]}  Ke5 {[%clk 0:00:46]} 49. h5 {[%clk 0:00:06]}  Ra2 {[%clk 0:00:46]} 0-1


[Site "https://www.chess.com"]